fUST/lending_fUST_20250122
["ID","MTS","AMOUNT","RATE_DAILY","PERIOD"]
[349929499,1737514241742,-500.0,0.00021917,3]
[349929500,1737514241751,-151.0,0.00021917,2]
[349929501,1737514241760,-186.074226,0.00021917,2]
[349929502,1737514241770,-151.0,0.00021917,2]
[349929503,1737514241780,-551.90222915,0.00021917,3]
[349929504,1737514241789,-500.0,0.00021917,3]
[349929505,1737514241799,-500.0,0.00021917,3]
[349929506,1737514241808,-500.0,0.00021917,3]
[349929507,1737514241817,-500.0,0.00021917,3]
[349929508,1737514241827,-500.0,0.00021917,3]
[349929509,1737514241836,-500.0,0.00021917,3]
[349929510,1737514241846,-500.0,0.00021917,3]
[349929511,1737514241855,-500.0,0.00021917,3]
[349929512,1737514241864,-500.0,0.00021917,3]
[349929513,1737514241874,-629.27,0.00021917,3]
[349929514,1737514241883,-151.0,0.00021917,2]
[349929515,1737514241892,-151.0,0.00021917,2]
[349929516,1737514241902,-151.0,0.00021917,2]
[349929517,1737514241911,-151.0,0.00021917,2]
[349929518,1737514241920,-151.0,0.00021917,2]
[349929519,1737514241930,-151.0,0.00021917,2]
[349929520,1737514241939,-151.0,0.00021917,2]
[349929521,1737514241951,-151.0,0.00021917,2]
[349929522,1737514241961,-151.0,0.00021917,2]
[349929523,1737514241972,-500.0,0.00021917,3]
[349929524,1737514241983,-151.0,0.00021917,2]
[349929525,1737514241992,-500.0,0.00021917,3]
[349929526,1737514242001,-151.0,0.00021917,2]
[349929527,1737514242010,-266.889867,0.00021917,2]
[349929528,1737514242019,-500.0,0.00021917,3]
[349929529,1737514242030,-500.0,0.00021917,3]
[349929530,1737514242041,-151.0,0.00021917,2]
[349929531,1737514242051,-151.0,0.00021917,2]
[349929532,1737514242128,-151.0,0.00021917,2]
[349929533,1737514242137,-151.0,0.00021917,2]
[349929534,1737514242147,-151.0,0.00021917,2]
[349929535,1737514242156,-500.0,0.00021917,3]
[349929536,1737514242165,-151.0,0.00021917,2]
[349929537,1737514242174,-151.0,0.00021917,2]
[349929538,1737514242183,-151.0,0.00021917,2]
[349929539,1737514242192,-2100.96,0.00021917,3]
[349929540,1737514242201,-151.0,0.00021917,2]
[349929541,1737514242210,-151.0,0.00021917,2]
[349929542,1737514242221,-151.0,0.00021917,2]
[349929543,1737514242230,-151.0,0.00021917,2]
[349929544,1737514242239,-151.0,0.00021917,2]
[349929545,1737514242248,-500.0,0.00021917,3]
[349929546,1737514242258,-151.0,0.00021917,2]
[349929547,1737514242267,-151.0,0.00021917,2]
[349929548,1737514242276,-500.0,0.00021917,3]
[349929549,1737514242286,-151.0,0.00021917,2]
[349929550,1737514242295,-500.0,0.00021917,3]
[349929551,1737514242305,-191.963654,0.00021917,2]
[349929552,1737514242315,-245.18497512,0.00021917,3]
[349929553,1737514242324,-500.0,0.00021917,3]
[349929554,1737514242334,-500.0,0.00021917,3]
[349929555,1737514242343,-513.05783696,0.00021917,3]
[349929556,1737514242353,-500.0,0.00021917,3]
[349929557,1737514242362,-500.0,0.00021917,3]
[349929558,1737514242371,-500.0,0.00021917,3]
[349929559,1737514242382,-500.0,0.00021917,3]
[349929560,1737514242391,-150.0,0.00021917,2]
[349929561,1737514242401,-151.93519194,0.00021917,3]
[349929562,1737514242410,-500.0,0.00021917,3]
[349929563,1737514242419,-500.0,0.00021917,3]
[349929564,1737514242429,-500.0,0.00021917,3]
[349929565,1737514242438,-944.15,0.00021917,3]
[349929566,1737514242448,-500.0,0.00021917,3]
[349929567,1737514242457,-500.0,0.00021917,3]
[349929568,1737514242468,-500.0,0.00021917,3]
[349929569,1737514242477,-848.63,0.00021917,3]
[349929570,1737514242487,-500.0,0.00021917,3]
[349929571,1737514242499,-500.0,0.00021917,3]
[349929572,1737514242508,-500.0,0.00021917,3]
[349929573,1737514242518,-500.0,0.00021917,3]
[349929574,1737514242527,-785.42,0.00021917,3]
[349929575,1737514242537,-500.0,0.00021917,3]
[349929576,1737514242546,-957.29,0.00021917,3]
[349929577,1737514242556,-500.0,0.00021917,3]
[349929578,1737514242565,-500.0,0.00021917,3]
[349929579,1737514242575,-200.0,0.00021917,3]
[349929580,1737514242584,-500.0,0.00021917,3]
[349929581,1737514242594,-688.28,0.00021917,3]
[349929582,1737514242603,-500.0,0.00021917,3]
[349929583,1737514242612,-500.0,0.00021917,3]
[349929584,1737514242622,-150.07567134,0.00021917,3]
[349929585,1737514242631,-500.0,0.00021917,3]
[349929586,1737514242641,-500.0,0.00021917,3]
[349929587,1737514242651,-1123.86,0.00021917,3]
[349929588,1737514242660,-500.0,0.00021917,3]
[349929589,1737514242669,-500.0,0.00021917,3]
[349929590,1737514242679,-500.0,0.00021917,3]
[349929591,1737514242688,-500.0,0.00021917,3]
[349929592,1737514242698,-10787.134509,0.00021917,3]
[349929593,1737514242720,-16924.80241235,0.00021917,3]
[349929594,1737514242732,-334.54512468,0.00021917,3]
[349929595,1737514242743,-931.66,0.00021917,3]
[349929596,1737514242755,-622.862856,0.00021917,3]
[349929599,1737514242998,-150.205,0.00021693,2]
[349929600,1737514243008,-15674.18509797,0.00021917,3]
[349929601,1737514243017,-500.0,0.00021917,3]
[349929602,1737514243028,-1797.71,0.00021917,2]
[349929603,1737514243037,-500.0,0.00021917,3]
[349929604,1737514243046,-500.0,0.00021917,3]
[349929605,1737514243056,-151.0,0.00021917,2]
[349929606,1737514243065,-158.275302,0.00021917,2]
[349929607,1737514243074,-2345.34,0.00021917,3]
[349929608,1737514243084,-3404.56,0.00021917,3]
[349929609,1737514243093,-500.0,0.00021917,2]
[349929610,1737514243102,-500.0,0.00021917,3]
[349929611,1737514243112,-10293.2,0.00021917,3]
[349929613,1737514243121,-500.0,0.00021917,3]
[349929615,1737514243131,-3114.49,0.00021917,3]
[349929617,1737514243140,-500.0,0.00021917,3]
[349929618,1737514243149,-1757.57,0.00021917,3]
[349929620,1737514243159,-500.0,0.00021917,3]
[349929622,1737514243168,-151.0,0.00021917,2]
[349929624,1737514243177,-151.0,0.00021917,2]
[349929625,1737514243186,-151.0,0.00021917,2]
[349929626,1737514243196,-500.0,0.00021917,3]
[349929627,1737514243205,-151.0,0.00021917,2]
[349929629,1737514243215,-151.0,0.00021917,2]
[349929631,1737514243224,-278.60255,0.00021917,2]
[349929632,1737514243234,-500.0,0.00021917,3]
[349929634,1737514243243,-500.0,0.00021917,3]
[349929636,1737514243253,-500.0,0.00021917,3]
[349929638,1737514243262,-504.93256689,0.00021917,3]
[349929640,1737514243272,-1684.0,0.00021917,3]
[349929642,1737514243282,-912.2,0.00021917,3]
[349929644,1737514243291,-500.0,0.00021917,3]
[349929646,1737514243300,-500.0,0.00021917,3]
[349929648,1737514243309,-500.0,0.00021917,3]
[349929650,1737514243318,-500.0,0.00021917,3]
[349929652,1737514243327,-734.77,0.00021917,3]
[349929654,1737514243337,-500.0,0.00021917,3]
[349929658,1737514243407,-500.0,0.00021917,3]
[349929659,1737514243424,-3207.74,0.00021917,3]
[349929660,1737514243433,-500.0,0.00021917,3]
[349929662,1737514243443,-500.0,0.00021917,3]
[349929664,1737514243452,-500.0,0.00021917,3]
[349929666,1737514243462,-500.0,0.00021917,3]
[349929668,1737514243472,-150.0,0.00021917,3]
[349929670,1737514243481,-500.0,0.00021917,3]
[349929672,1737514243491,-500.0,0.00021917,3]
[349929674,1737514243500,-500.0,0.00021917,3]
[349929676,1737514243509,-500.0,0.00021917,3]
[349929678,1737514243518,-681.49,0.00021917,3]
[349929680,1737514243528,-151.0,0.00021917,2]
[349929682,1737514243537,-151.0,0.00021917,2]
[349929684,1737514243546,-151.0,0.00021917,2]
[349929686,1737514243555,-151.0,0.00021917,2]
[349929688,1737514243564,-151.0,0.00021917,2]
[349929690,1737514243574,-151.0,0.00021917,2]
[349929692,1737514243583,-151.0,0.00021917,2]
[349929694,1737514243592,-151.0,0.00021917,2]
[349929696,1737514243601,-1396.93,0.00021917,3]
[349929697,1737514243610,-224.100135,0.00021917,2]
[349929700,1737514243620,-500.0,0.00021917,3]
[349929701,1737514243629,-500.0,0.00021917,3]
[349929704,1737514243638,-503.74791219,0.00021917,3]
[349929706,1737514243648,-1468.19,0.00021917,3]
[349929707,1737514243657,-753.65,0.00021917,3]
[349929709,1737514243666,-500.0,0.00021917,3]
[349929711,1737514243676,-500.0,0.00021917,3]
[349929713,1737514243685,-517.54206974,0.00021917,3]
[349929715,1737514243695,-500.0,0.00021917,3]
[349929717,1737514243703,-500.0,0.00021917,3]
[349929719,1737514243713,-500.0,0.00021917,3]
[349929721,1737514243722,-500.0,0.00021917,3]
[349929723,1737514243731,-500.0,0.00021917,3]
[349929725,1737514243741,-500.0,0.00021917,3]
[349929727,1737514243750,-500.0,0.00021917,3]
[349929729,1737514243759,-500.0,0.00021917,3]
[349929731,1737514243769,-151.0,0.00021917,2]
[349929733,1737514243778,-500.0,0.00021917,3]
[349929735,1737514243787,-151.0,0.00021917,2]
[349929737,1737514243796,-151.0,0.00021917,2]
[349929739,1737514243806,-151.0,0.00021917,2]
[349929741,1737514243815,-151.0,0.00021917,2]
[349929743,1737514243824,-158.253214,0.00021917,2]
[349929745,1737514243833,-500.0,0.00021917,3]
[349929747,1737514243842,-804.23,0.00021917,3]
[349929749,1737514243851,-568.71,0.00021917,3]
[349929751,1737514243860,-153.683797,0.00021917,2]
[349929753,1737514243870,-649.00158031,0.00021917,3]
[349929755,1737514243879,-500.0,0.00021917,3]
[349929757,1737514243888,-500.0,0.00021917,3]
[349929760,1737514243898,-508.67,0.00021917,3]
[349929762,1737514243907,-2460.4,0.00021917,3]
[349929764,1737514243916,-500.0,0.00021917,3]
[349929766,1737514243926,-500.0,0.00021917,3]
[349929768,1737514243935,-500.0,0.00021917,3]
[349929770,1737514243945,-500.0,0.00021917,3]
[349929772,1737514243959,-500.0,0.00021917,3]
[349929774,1737514243968,-500.0,0.00021917,3]
[349929776,1737514243977,-500.0,0.00021917,3]
[349929778,1737514243987,-6865.64,0.00021917,3]
[349929780,1737514243997,-500.0,0.00021917,3]
[349929782,1737514244006,-500.0,0.00021917,3]
[349929784,1737514244015,-1515.23,0.00021917,3]
[349929786,1737514244024,-500.0,0.00021917,3]
[349929788,1737514244034,-691.74,0.00021917,3]
[349929790,1737514244043,-172.49259807,0.00021917,3]
[349929792,1737514244057,-327.50740193,0.00021917,3]
[349929794,1737514244066,-500.0,0.00021917,3]
[349929796,1737514244075,-6275.05,0.00021917,3]
[349929798,1737514244084,-522.04173871,0.00021917,3]
[349929801,1737514244095,-500.0,0.00021917,3]
[349929803,1737514244103,-500.0,0.00021917,3]
[349929805,1737514244112,-150.0,0.00021917,3]
[349929807,1737514244122,-500.0,0.00021917,3]
[349929809,1737514244131,-1291.26,0.00021917,3]
[349929811,1737514244141,-150.0,0.00021917,2]
[349929813,1737514244151,-500.0,0.00021917,3]
[349929815,1737514244161,-1006.66,0.00021917,3]
[349929816,1737514244170,-150.0,0.00021917,3]
[349929819,1737514244180,-151.969557,0.00021917,2]
[349929821,1737514244190,-150.0,0.00021917,3]
[349929823,1737514244200,-150.0,0.00021917,3]
[349929825,1737514244209,-3232.39,0.00021917,3]
[349929827,1737514244219,-500.0,0.00021917,3]
[349929829,1737514244228,-500.0,0.00021917,3]
[349929831,1737514244237,-821.18,0.00021917,3]
[349929832,1737514244246,-500.0,0.00021917,3]
[349929835,1737514244255,-500.0,0.00021917,3]
[349929837,1737514244265,-503.21946053,0.00021917,2]
[349929839,1737514244273,-580.17,0.00021917,3]
[349929841,1737514244282,-500.0,0.00021917,3]
[349929842,1737514244291,-500.0,0.00021917,3]
[349929844,1737514244300,-500.0,0.00021917,3]
[349929846,1737514244309,-507.45498923,0.00021917,3]
[349929848,1737514244319,-2503.35,0.00021917,3]
[349929850,1737514244327,-8247.66,0.00021917,3]
[349929852,1737514244337,-500.0,0.00021917,3]
[349929854,1737514244346,-1004.49,0.00021917,3]
[349929856,1737514244355,-151.0,0.00021917,2]
[349929858,1737514244364,-151.0,0.00021917,2]
[349929860,1737514244373,-151.0,0.00021917,2]
[349929862,1737514244383,-151.0,0.00021917,2]
[349929865,1737514244392,-165.936386,0.00021917,2]
[349929867,1737514244401,-500.0,0.00021917,3]
[349929869,1737514244410,-1365.39,0.00021917,3]
[349929871,1737514244421,-500.0,0.00021917,3]
[349929873,1737514244430,-500.0,0.00021917,3]
[349929875,1737514244439,-500.0,0.00021917,3]
[349929877,1737514244448,-500.0,0.00021917,3]
[349929879,1737514244457,-500.0,0.00021917,3]
[349929881,1737514244467,-741.87,0.00021917,3]
[349929883,1737514244476,-500.0,0.00021917,3]
[349929885,1737514244485,-500.0,0.00021917,3]
[349929887,1737514244495,-500.0,0.00021917,3]
[349929889,1737514244504,-500.0,0.00021917,2]
[349929891,1737514244513,-500.0,0.00021917,2]
[349929893,1737514244522,-500.0,0.00021917,2]
[349929895,1737514244531,-500.0,0.00021917,2]
[349929897,1737514244541,-500.0,0.00021917,2]
[349929906,1737514244614,-500.0,0.00021917,2]
[349929908,1737514244624,-500.0,0.00021917,3]
[349929910,1737514244633,-771.7,0.00021917,3]
[349929912,1737514244643,-500.0,0.00021917,2]
[349929915,1737514244652,-500.0,0.00021917,3]
[349929917,1737514244662,-500.0,0.00021917,2]
[349929919,1737514244671,-500.0,0.00021917,3]
[349929921,1737514244680,-500.0,0.00021917,2]
[349929923,1737514244690,-500.0,0.00021917,3]
[349929925,1737514244699,-514.25572753,0.00021917,3]
[349929927,1737514244708,-227.607183,0.00021917,2]
[349929929,1737514244719,-576.26,0.00021917,3]
[349929931,1737514244728,-850.21,0.00021917,3]
[349929933,1737514244737,-965.01,0.00021917,3]
[349929935,1737514244746,-679.71,0.00021917,3]
[349929937,1737514244755,-962.25,0.00021917,3]
[349929939,1737514244764,-500.0,0.00021917,3]
[349929941,1737514244773,-500.0,0.00021917,3]
[349929943,1737514244782,-500.0,0.00021917,3]
[349929945,1737514244791,-500.0,0.00021917,3]
[349929947,1737514244800,-683.09353585,0.00021917,3]
[349929963,1737514244941,-1522.48646415,0.00021917,3]
[349929965,1737514244953,-151.0,0.00021917,2]
[349929967,1737514244962,-151.0,0.00021917,2]
[349929969,1737514244973,-500.0,0.00021917,3]
[349929971,1737514244982,-151.0,0.00021917,2]
[349929973,1737514244994,-151.0,0.00021917,2]
[349929975,1737514245003,-151.0,0.00021917,2]
[349929977,1737514245013,-151.0,0.00021917,2]
[349929979,1737514245023,-461.09270735,0.00021917,3]
[349929981,1737514245033,-151.0,0.00021917,2]
[349929983,1737514245042,-248.999318,0.00021917,2]
[349929984,1737514245052,-500.0,0.00021917,3]
[349929985,1737514245062,-500.0,0.00021917,3]
[349929986,1737514245071,-500.0,0.00021917,3]
[349929987,1737514245080,-2541.47,0.00021917,3]
[349929988,1737514245089,-500.0,0.00021917,3]
[349929989,1737514245099,-150.0,0.00021917,3]
[349929990,1737514245108,-150.0,0.00021917,2]
[349929991,1737514245117,-500.0,0.00021917,3]
[349929992,1737514245127,-150.0,0.00021917,3]
[349929993,1737514245137,-162.827855,0.00021917,2]
[349929994,1737514245146,-150.0,0.00021917,3]
[349929995,1737514245155,-500.0,0.00021917,3]
[349929996,1737514245164,-590.87,0.00021917,3]
[349929997,1737514245173,-550.3,0.00021917,3]
[349929998,1737514245183,-500.0,0.00021917,3]
[349929999,1737514245192,-215.2533166,0.00021918,2]
[349930000,1737514245201,-215.2533166,0.00021918,2]
[349930001,1737514245210,-215.2533166,0.00021918,2]
[349930002,1737514245220,-153.0,0.00021918,2]
[349930004,1737514245229,-429.9300054,0.00021918,2]
[349930006,1737514245238,-154.1761492,0.00021918,2]
[349930008,1737514245248,-154.1761492,0.00021918,2]
[349930009,1737514245257,-153.0,0.00021918,2]
[349930011,1737514245266,-500.0,0.00021918,3]
[349930013,1737514245275,-155.0,0.00021929,2]
[349930016,1737514245285,-155.0,0.00021929,2]
[349930017,1737514245295,-155.0,0.00021929,2]
[349930019,1737514245304,-155.0,0.00021929,2]
[349930021,1737514245313,-155.0,0.00021929,2]
[349930023,1737514245322,-155.0,0.00021929,2]
[349930025,1737514245331,-155.0,0.00021929,2]
[349930027,1737514245340,-155.0,0.00021929,2]
[349930029,1737514245349,-155.0,0.00021929,2]
[349930031,1737514245359,-155.0,0.00021929,2]
[349930033,1737514245368,-155.0,0.00021929,2]
[349930035,1737514245377,-155.0,0.00021929,2]
[349930037,1737514245386,-155.0,0.00021929,2]
[349930039,1737514245396,-155.0,0.00021929,2]
[349930041,1737514245406,-155.0,0.00021929,2]
[349930044,1737514245415,-155.0,0.00021929,2]
[349930045,1737514245424,-155.0,0.00021929,2]
[349930047,1737514245434,-155.0,0.00021929,2]
[349930050,1737514245443,-155.0,0.00021929,2]
[349930051,1737514245453,-155.0,0.00021929,2]
[349930053,1737514245462,-155.0,0.00021929,2]
[349930063,1737514245542,-155.0,0.00021929,2]
[349930066,1737514245553,-155.0,0.00021929,2]
[349930067,1737514245562,-155.0,0.00021929,2]
[349930069,1737514245571,-166.89,0.00021929,2]
[349930071,1737514245580,-1017.42455296,0.00021934,2]
[349930073,1737514245589,-151.0,0.00021961,5]
[349930075,1737514245599,-500.0,0.00021973,2]
[349930077,1737514245608,-151.26828398,0.00021973,2]
[349930079,1737514245618,-500.0,0.00021973,2]
[349930081,1737514245627,-504.93166208,0.00021973,2]
[349930083,1737514245637,-500.0,0.00021973,2]
[349930085,1737514245646,-500.0,0.00021973,2]
[349930087,1737514245656,-167.81262799,0.00021973,2]
[349930089,1737514245665,-500.0,0.00021973,2]
[349930091,1737514245675,-2254.02,0.00022,4]
[349930093,1737514245684,-240.10708897,0.00022,2]
[349930095,1737514245694,-5238.74871124,0.00022003,3]
[349930097,1737514245703,-1000.0,0.00022023,2]
[349930099,1737514245713,-160.0,0.00022053,2]
[349930101,1737514245723,-1099.04983442,0.00022053,2]
[349930103,1737514245732,-500.0,0.00022054,3]
[349930105,1737514245741,-500.0,0.00022054,3]
[349930107,1737514245751,-500.0,0.00022054,3]
[349930109,1737514245761,-500.0,0.00022054,3]
[349930111,1737514245770,-500.0,0.00022054,3]
[349930113,1737514245779,-502.64780773,0.00022054,3]
[349930115,1737514245790,-500.0,0.00022054,3]
[349930117,1737514245799,-500.0,0.00022054,3]
[349930119,1737514245809,-432.44000024,0.00022054,3]
[349930121,1737514245818,-500.0,0.00022054,3]
[349930123,1737514245827,-500.0,0.00022054,3]
[349930126,1737514245837,-500.0,0.00022054,3]
[349930128,1737514245846,-500.0,0.00022054,3]
[349930130,1737514245855,-500.0,0.00022054,3]
[349930132,1737514245865,-706.51,0.00022054,3]
[349930134,1737514245874,-1058.83,0.00022054,3]
[349930136,1737514245884,-500.0,0.00022054,3]
[349930139,1737514245893,-505.76274153,0.00022054,3]
[349930142,1737514245902,-500.0,0.00022054,3]
[349930145,1737514245911,-500.0,0.00022054,3]
[349930146,1737514245920,-500.0,0.00022054,3]
[349930149,1737514245930,-531.28,0.00022054,3]
[349930152,1737514245941,-500.0,0.00022054,3]
[349930156,1737514245952,-500.0,0.00022054,3]
[349930158,1737514245963,-500.0,0.00022054,3]
[349930161,1737514245973,-586.54591961,0.00022054,3]
[349930165,1737514245983,-1134.66,0.00022054,3]
[349930169,1737514245995,-500.0,0.00022054,3]
[349930172,1737514246005,-500.0,0.00022054,3]
[349930175,1737514246015,-500.0,0.00022054,3]
[349930177,1737514246025,-500.0,0.00022054,3]
[349930179,1737514246035,-653.53,0.00022054,3]
[349930182,1737514246049,-500.0,0.00022054,3]
[349930185,1737514246069,-500.0,0.00022054,3]
[349930187,1737514246086,-593.66,0.00022054,3]
[349930190,1737514246104,-500.0,0.00022054,3]
[349930193,1737514246123,-500.0,0.00022054,3]
[349930196,1737514246142,-500.0,0.00022054,3]
[349930199,1737514246159,-724.06,0.00022054,3]
[349930202,1737514246175,-500.0,0.00022054,3]
[349930205,1737514246192,-500.0,0.00022054,3]
[349930207,1737514246205,-500.0,0.00022054,3]
[349930210,1737514246223,-500.0,0.00022054,3]
[349930212,1737514246240,-370.8655968,0.00022054,3]
[349930215,1737514246257,-804.39,0.00022054,3]
[349930218,1737514246270,-242.07845022,0.00022054,3]
[349930220,1737514246285,-500.0,0.00022054,3]
[349930223,1737514246302,-500.0,0.00022054,3]
[349930225,1737514246315,-500.0,0.00022054,3]
[349930228,1737514246331,-500.0,0.00022054,3]
[349930230,1737514246344,-309.072143,0.00022054,3]
[349930233,1737514246357,-500.0,0.00022054,3]
[349930235,1737514246373,-500.0,0.00022054,3]
[349930238,1737514246387,-500.0,0.00022054,3]
[349930240,1737514246401,-500.0,0.00022054,3]
[349930243,1737514246414,-500.0,0.00022054,3]
[349930245,1737514246428,-537.0,0.00022054,3]
[349930248,1737514246441,-500.0,0.00022054,3]
[349930250,1737514246456,-500.0,0.00022054,3]
[349930253,1737514246472,-500.0,0.00022054,3]
[349930255,1737514246486,-775.45,0.00022054,3]
[349930258,1737514246499,-1062.75,0.00022054,3]
[349930260,1737514246514,-1065.13,0.00022054,3]
[349930263,1737514246528,-500.0,0.00022054,3]
[349930265,1737514246542,-618.04,0.00022054,3]
[349930268,1737514246556,-500.0,0.00022054,3]
[349930270,1737514246570,-500.0,0.00022054,3]
[349930273,1737514246584,-500.0,0.00022054,3]
[349930278,1737514246600,-500.0,0.00022054,3]
[349930280,1737514246614,-1038.26,0.00022054,3]
[349930283,1737514246628,-276.3474655,0.00022054,3]
[349930286,1737514246641,-500.0,0.00022054,3]
[349930289,1737514246656,-500.0,0.00022054,3]
[349930291,1737514246667,-511.78498232,0.00022054,3]
[349930293,1737514246676,-500.0,0.00022054,3]
[349930295,1737514246686,-823.54,0.00022054,3]
[349930297,1737514246695,-633.67,0.00022054,3]
[349930299,1737514246705,-500.0,0.00022054,3]
[349930301,1737514246715,-500.0,0.00022054,3]
[349930303,1737514246726,-500.0,0.00022054,3]
[349930305,1737514246735,-673.67,0.00022054,3]
[349930307,1737514246745,-500.0,0.00022054,3]
[349930309,1737514246755,-500.0,0.00022054,3]
[349930325,1737514246764,-500.0,0.00022054,3]
[349930328,1737514246915,-520.24104956,0.00022054,3]
[349930330,1737514246925,-500.0,0.00022054,3]
[349930332,1737514246935,-500.0,0.00022054,3]
[349930334,1737514246946,-575.51,0.00022054,3]
[349930336,1737514246958,-500.0,0.00022054,3]
[349930338,1737514246968,-500.0,0.00022054,3]
[349930340,1737514246978,-472.56928336,0.00022054,3]
[349930342,1737514246988,-500.0,0.00022054,3]
[349930344,1737514246999,-505.03988788,0.00022054,3]
[349930346,1737514247009,-500.0,0.00022054,3]
[349930348,1737514247018,-1066.29,0.00022054,3]
[349930350,1737514247028,-500.0,0.00022054,3]
[349930352,1737514247037,-1046.97,0.00022054,3]
[349930354,1737514247047,-761.57,0.00022054,3]
[349930356,1737514247057,-500.0,0.00022054,3]
[349930358,1737514247067,-665.29,0.00022054,3]
[349930360,1737514247076,-503.46453891,0.00022054,3]
[349930362,1737514247086,-500.0,0.00022054,3]
[349930364,1737514247096,-504.51329978,0.00022054,3]
[349930366,1737514247105,-151.0,0.00022054,6]
[349930368,1737514247117,-500.0,0.00022054,3]
[349930370,1737514247127,-505.74140663,0.00022054,3]
[349930372,1737514247136,-500.0,0.00022054,3]
[349930374,1737514247146,-504.89685945,0.00022054,3]
[349930376,1737514247155,-500.0,0.00022054,3]
[349930378,1737514247164,-500.0,0.00022054,3]
[349930380,1737514247173,-505.55939124,0.00022054,3]
[349930382,1737514247182,-525.44277291,0.00022054,3]
[349930384,1737514247192,-508.19285122,0.00022054,3]
[349930386,1737514247202,-629.27,0.00022054,3]
[349930388,1737514247211,-541.91672659,0.00022054,3]
[349930390,1737514247223,-500.0,0.00022054,3]
[349930392,1737514247233,-505.48276983,0.00022054,3]
[349930394,1737514247242,-504.75243592,0.00022054,3]
[349930396,1737514247252,-500.0,0.00022054,3]
[349930398,1737514247262,-505.39403726,0.00022054,3]
[349930400,1737514247271,-500.0,0.00022054,3]
[349930402,1737514247280,-500.0,0.00022054,3]
[349930404,1737514247290,-509.9099335,0.00022054,3]
[349930406,1737514247299,-500.0,0.00022054,3]
[349930408,1737514247308,-497.9956384,0.00022054,3]
[349930410,1737514247317,-500.0,0.00022054,3]
[349930412,1737514247326,-506.55140169,0.00022054,3]
[349930414,1737514247336,-500.0,0.00022054,3]
[349930416,1737514247345,-500.0,0.00022054,3]
[349930418,1737514247355,-944.15,0.00022054,3]
[349930420,1737514247364,-500.0,0.00022054,3]
[349930422,1737514247374,-502.97501015,0.00022054,3]
[349930424,1737514247383,-500.0,0.00022054,3]
[349930426,1737514247392,-848.63,0.00022054,3]
[349930428,1737514247401,-371.0494454,0.00022054,3]
[349930430,1737514247410,-500.0,0.00022054,3]
[349930432,1737514247421,-500.0,0.00022054,3]
[349930434,1737514247431,-500.0,0.00022054,3]
[349930436,1737514247441,-785.42,0.00022054,3]
[349930438,1737514247450,-500.0,0.00022054,3]
[349930440,1737514247460,-957.29,0.00022054,3]
[349930442,1737514247470,-500.0,0.00022054,3]
[349930444,1737514247480,-500.0,0.00022054,3]
[349930446,1737514247490,-202.94693962,0.00022054,3]
[349930448,1737514247499,-500.0,0.00022054,3]
[349930450,1737514247509,-688.28,0.00022054,3]
[349930452,1737514247518,-500.0,0.00022054,3]